[Event "Goteborg Open 2018"]
[Site "Molnlycke kulturhus, Biblioteksgatan 2, Molnlycke, Sweden"]
[Date "2018.08.19"]
[Round "7.1"]
[White "Golubka, Petro"]
[Black "Vypkhaniuk, Ihor"]
[Result "1/2-1/2"]
[TimeControl "15 minutes + 5 seconds per move from move one (Round 1 - 4) / 90 minutes + 30 seconds per move from move one (Round 5 - 8)"]
[WhiteTitle "IM"]
[BlackTitle "FM"]
[WhiteFideId "14114224"]
[BlackFideId "14112256"]
[WhiteElo "2478"]
[BlackElo "2357"]

1. e4 {[%clk 01:30:56]} {[%emt 00:00:03]} d6 {[%clk 01:30:36]} {[%emt
00:00:25]} 2. d4 {[%clk 01:27:32]} {[%emt 00:03:54]} Nf6 {[%clk 01:30:59]}
{[%emt 00:00:07]} 3. Nc3 {[%clk 01:27:07]} {[%emt 00:00:56]} e5 {[%clk
01:31:26]} {[%emt 00:00:02]} 4. Nf3 {[%clk 01:25:16]} {[%emt 00:02:21]} Nbd7
{[%clk 01:31:45]} {[%emt 00:00:11]} 5. g3 {[%clk 01:22:19]} {[%emt 00:03:28]}
g6 {[%clk 01:25:42]} {[%emt 00:06:32]} 6. Bg2 {[%clk 01:20:55]} {[%emt
00:01:55]} Bg7 {[%clk 01:24:24]} {[%emt 00:01:47]} 7. O-O {[%clk 01:21:21]}
{[%emt 00:00:05]} O-O {[%clk 01:24:35]} {[%emt 00:00:18]} 8. Re1 {[%clk
01:21:44]} {[%emt 00:00:07]} Re8 {[%clk 01:22:02]} {[%emt 00:03:04]} 9. a4
{[%clk 01:20:21]} {[%emt 00:01:53]} a5 {[%clk 01:21:07]} {[%emt 00:01:25]} 10.
Be3 {[%clk 01:17:59]} {[%emt 00:02:52]} c6 {[%clk 01:16:07]} {[%emt 00:05:29]}
11. h3 {[%clk 01:18:11]} {[%emt 00:00:19]} exd4 {[%clk 01:11:24]} {[%emt
00:05:13]} 12. Bxd4 {[%clk 01:18:20]} {[%emt 00:00:22]} Qc7 {[%clk 01:10:58]}
{[%emt 00:00:56]} 13. Qd2 {[%clk 01:18:27]} {[%emt 00:00:23]} Ne5 {[%clk
01:06:31]} {[%emt 00:04:56]} 14. Kh2 {[%clk 01:18:32]} {[%emt 00:00:24]} Nc4
{[%clk 01:05:03]} {[%emt 00:01:58]} 15. Qc1 {[%clk 01:18:56]} {[%emt 00:00:06]}
Ne5 {[%clk 01:01:24]} {[%emt 00:04:10]} 16. Qd2 {[%clk 01:19:21]} {[%emt
00:00:06]} Nc4 {[%clk 00:57:37]} {[%emt 00:04:17]} 17. Qc1 {[%clk 01:18:11]}
{[%emt 00:01:40]} Ne5 {[%emt 00:03:03]} 1/2-1/2

[Event "Goteborg Open 2018"]
[Site "Molnlycke kulturhus, Biblioteksgatan 2, Molnlycke, Sweden"]
[Date "2018.08.19"]
[Round "7.2"]
[White "Petersson, Baldur Teodor"]
[Black "Gritsak, Orest"]
[Result "1/2-1/2"]
[TimeControl "15 minutes + 5 seconds per move from move one (Round 1 - 4) / 90 minutes + 30 seconds per move from move one (Round 5 - 8)"]
[WhiteTitle "CM"]
[BlackTitle "GM"]
[WhiteFideId "2309157"]
[BlackFideId "14102188"]
[WhiteElo "2138"]
[BlackElo "2464"]

1. e4 {[%clk 01:30:43]} {[%emt 00:00:15]} c5 {[%clk 01:30:46]} {[%emt
00:00:14]} 2. Nc3 {[%clk 01:30:27]} {[%emt 00:00:47]} Nc6 {[%clk 01:30:49]}
{[%emt 00:00:28]} 3. g3 {[%clk 01:30:27]} {[%emt 00:00:30]} g6 {[%clk
01:29:27]} {[%emt 00:01:53]} 4. Bg2 {[%clk 01:30:40]} {[%emt 00:00:17]} Bg7
{[%clk 01:29:51]} {[%emt 00:00:05]} 5. d3 {[%clk 01:31:01]} {[%emt 00:00:09]}
b6 {[%clk 01:26:49]} {[%emt 00:03:33]} 6. Be3 {[%clk 01:27:58]} {[%emt
00:03:32]} Bb7 {[%clk 01:23:47]} {[%emt 00:03:32]} 7. Qd2 {[%clk 01:23:12]}
{[%emt 00:05:16]} d6 {[%clk 01:18:11]} {[%emt 00:06:06]} 8. f4 {[%clk
01:13:00]} {[%emt 00:10:43]} Nd4 {[%clk 01:11:14]} {[%emt 00:07:27]} 9. Nd1
{[%clk 01:01:45]} {[%emt 00:11:45]} e5 {[%clk 01:04:47]} {[%emt 00:06:58]} 10.
Nh3 {[%clk 00:56:21]} {[%emt 00:05:53]} Nf6 {[%clk 00:59:01]} {[%emt 00:06:17]}
11. c3 {[%clk 00:54:43]} {[%emt 00:02:07]} Nc6 {[%clk 00:59:17]} {[%emt
00:00:14]} 12. O-O {[%clk 00:48:23]} {[%emt 00:06:50]} h6 {[%clk 00:56:49]}
{[%emt 00:02:59]} 13. Bf2 {[%clk 00:40:53]} {[%emt 00:07:59]} Qd7 {[%clk
00:51:51]} {[%emt 00:05:28]} 14. Ne3 {[%clk 00:37:47]} {[%emt 00:03:36]} Ne7
{[%clk 00:51:20]} {[%emt 00:01:01]} 15. Qe2 {[%clk 00:34:54]} {[%emt 00:03:24]}
O-O {[%clk 00:48:42]} {[%emt 00:03:08]} 16. g4 {[%clk 00:32:56]} {[%emt
00:02:27]} exf4 {[%clk 00:38:09]} {[%emt 00:11:04]} 17. Nxf4 {[%clk 00:31:59]}
{[%emt 00:01:27]} Rae8 {[%clk 00:38:23]} {[%emt 00:00:16]} 18. h4 {[%clk
00:24:13]} {[%emt 00:08:16]} Nh7 {[%clk 00:37:35]} {[%emt 00:01:17]} 1/2-1/2

[Event "Goteborg Open 2018"]
[Site "Molnlycke kulturhus, Biblioteksgatan 2, Molnlycke, Sweden"]
[Date "2018.08.19"]
[Round "7.3"]
[White "Johansson, Roy"]
[Black "Rydstrom, Tom"]
[Result "0-1"]
[TimeControl "15 minutes + 5 seconds per move from move one (Round 1 - 4) / 90 minutes + 30 seconds per move from move one (Round 5 - 8)"]
[BlackTitle "FM"]
[WhiteFideId "1745972"]
[BlackFideId "1714830"]
[WhiteElo "1889"]
[BlackElo "2316"]

1. d4 {[%clk 01:30:56]} {[%emt 00:00:04]} g6 {[%clk 01:30:50]} {[%emt
00:00:44]} 2. Bf4 {[%clk 01:31:15]} Bg7 {[%clk 01:30:50]} {[%emt 00:00:07]} 3.
e3 {[%clk 01:31:30]} {[%emt 00:00:15]} d6 {[%clk 01:31:15]} {[%emt 00:00:05]} 4.
Nf3 {[%clk 01:31:53]} {[%emt 00:00:07]} Nd7 {[%clk 01:31:40]} {[%emt 00:00:05]}
5. Be2 {[%clk 01:32:14]} {[%emt 00:00:10]} e5 {[%clk 01:32:00]} {[%emt
00:00:09]} 6. Bg3 {[%clk 01:32:21]} {[%emt 00:00:24]} Qe7 {[%clk 01:32:09]}
{[%emt 00:00:20]} 7. O-O {[%clk 01:32:15]} {[%emt 00:00:37]} Ngf6 {[%clk
01:31:57]} {[%emt 00:00:42]} 8. h3 {[%clk 01:32:32]} {[%emt 00:00:13]} Ne4
{[%clk 01:31:09]} {[%emt 00:01:18]} 9. Bh2 {[%clk 01:32:23]} {[%emt 00:00:40]}
O-O {[%clk 01:31:32]} {[%emt 00:00:06]} 10. Nbd2 {[%clk 01:31:45]} {[%emt
00:01:09]} Nxd2 {[%clk 01:31:30]} {[%emt 00:00:32]} 11. Qxd2 {[%clk 01:31:37]}
{[%emt 00:00:37]} e4 {[%clk 01:31:55]} {[%emt 00:00:05]} 12. Ne1 {[%clk
01:31:50]} {[%emt 00:00:17]} f5 {[%clk 01:31:55]} {[%emt 00:00:30]} 13. c4
{[%clk 01:31:24]} {[%emt 00:00:56]} Kh8 {[%clk 01:28:55]} {[%emt 00:03:29]} 14.
Nc2 {[%clk 01:30:42]} {[%emt 00:01:11]} g5 {[%clk 01:21:03]} {[%emt 00:08:24]}
15. b4 {[%clk 01:28:53]} {[%emt 00:02:19]} Rf6 {[%clk 01:19:47]} {[%emt
00:01:45]} 16. c5 {[%clk 01:24:50]} {[%emt 00:04:34]} Rh6 {[%clk 01:19:43]}
{[%emt 00:00:35]} 17. cxd6 {[%clk 01:23:01]} {[%emt 00:02:19]} cxd6 {[%clk
01:20:06]} {[%emt 00:00:07]} 18. Bg3 {[%clk 01:21:52]} {[%emt 00:01:39]} Nf6
{[%clk 01:20:21]} {[%emt 00:00:15]} 19. Na3 {[%clk 01:21:05]} {[%emt 00:01:18]}
Nd5 {[%clk 01:07:36]} {[%emt 00:13:14]} 20. Bc4 {[%clk 01:17:15]} {[%emt
00:04:20]} Be6 {[%clk 01:07:39]} {[%emt 00:00:27]} 21. Bxd5 {[%clk 01:08:54]}
{[%emt 00:08:52]} Bxd5 {[%clk 01:06:29]} {[%emt 00:01:41]} 22. Rac1 {[%clk
01:09:11]} {[%emt 00:00:12]} Rf8 {[%clk 01:01:52]} {[%emt 00:05:07]} 23. Rc2
{[%clk 01:05:11]} {[%emt 00:04:31]} Qf6 {[%clk 00:55:39]} {[%emt 00:06:43]} 24.
Nb5 {[%clk 01:01:26]} {[%emt 00:04:14]} f4 {[%clk 00:54:42]} {[%emt 00:01:28]}
25. Bh2 {[%clk 01:00:33]} {[%emt 00:01:23]} f3 {[%clk 00:48:03]} {[%emt
00:07:09]} 26. Bxd6 {[%clk 00:58:51]} {[%emt 00:02:11]} fxg2 {[%clk 00:48:26]}
{[%emt 00:00:08]} 27. Rfc1 {[%clk 00:58:58]} {[%emt 00:00:23]} Rxh3 {[%clk
00:48:52]} {[%emt 00:00:05]} 28. Bh2 {[%clk 00:52:37]} {[%emt 00:06:50]} Qh6
{[%clk 00:48:19]} {[%emt 00:01:03]} 29. Rc8 {[%clk 00:51:30]} {[%emt 00:01:38]}
Rxh2 {[%clk 00:48:43]} {[%emt 00:00:06]} 30. Rxf8+ {[%clk 00:51:44]} {[%emt
00:00:16]} Bxf8 {[%clk 00:49:11]} {[%emt 00:00:02]} 31. Rc8 {[%clk 00:51:40]}
{[%emt 00:00:34]} Rh1+ {[%clk 00:49:35]} {[%emt 00:00:06]} 32. Kxg2 {[%clk
00:52:00]} {[%emt 00:00:09]} Qh3# {[%clk 00:50:02]} {[%emt 00:00:03]} 0-1

[Event "Goteborg Open 2018"]
[Site "Molnlycke kulturhus, Biblioteksgatan 2, Molnlycke, Sweden"]
[Date "2018.08.19"]
[Round "7.4"]
[White "Nyberg, Ulf"]
[Black "Maddens, Martijn"]
[Result "1/2-1/2"]
[TimeControl "15 minutes + 5 seconds per move from move one (Round 1 - 4) / 90 minutes + 30 seconds per move from move one (Round 5 - 8)"]
[BlackTitle "CM"]
[WhiteFideId "1705083"]
[BlackFideId "206962"]
[WhiteElo "2084"]
[BlackElo "2141"]

1. e4 {[%clk 01:30:41]} {[%emt 00:00:17]} c5 {[%clk 01:23:19]} {[%emt
00:07:43]} 2. a3 {[%clk 01:30:10]} {[%emt 00:01:01]} g6 {[%clk 01:23:43]}
{[%emt 00:00:06]} 3. Bc4 {[%clk 01:30:11]} {[%emt 00:00:27]} Bg7 {[%clk
01:23:31]} {[%emt 00:00:43]} 4. Nc3 {[%clk 01:30:27]} {[%emt 00:00:14]} Nc6
{[%clk 01:22:14]} {[%emt 00:01:47]} 5. d3 {[%clk 01:30:36]} {[%emt 00:00:20]}
d6 {[%clk 01:15:13]} {[%emt 00:07:32]} 6. Nge2 {[%clk 01:26:06]} {[%emt
00:04:59]} Nf6 {[%clk 01:13:15]} {[%emt 00:02:29]} 7. Bg5 {[%clk 01:19:18]}
{[%emt 00:07:17]} O-O {[%clk 01:09:54]} {[%emt 00:03:52]} 8. Qd2 {[%clk
01:16:12]} {[%emt 00:03:36]} a6 {[%clk 01:01:05]} {[%emt 00:09:20]} 9. O-O
{[%clk 01:09:53]} {[%emt 00:06:48]} b5 {[%clk 01:00:30]} {[%emt 00:01:06]} 10.
Ba2 {[%emt 00:01:07]} Bb7 {[%clk 00:44:38]} {[%emt 00:16:21]} 11. f4 {[%clk
01:00:57]} {[%emt 00:08:48]} h6 {[%clk 00:41:49]} {[%emt 00:03:20]} 12. Bh4
{[%clk 00:57:19]} {[%emt 00:04:07]} Nd4 {[%clk 00:38:10]} {[%emt 00:04:11]} 13.
Nxd4 {[%clk 00:51:14]} {[%emt 00:06:34]} cxd4 {[%clk 00:38:36]} {[%emt
00:00:03]} 14. Ne2 {[%clk 00:51:24]} {[%emt 00:00:20]} Ng4 {[%clk 00:33:18]}
{[%emt 00:05:50]} 15. f5 {[%clk 00:41:48]} {[%emt 00:10:05]} Kh7 {[%clk
00:28:12]} {[%emt 00:05:36]} 16. fxg6+ {[%clk 00:34:53]} {[%emt 00:07:24]} fxg6
{[%clk 00:28:41]} {[%emt 00:00:02]} 17. Rxf8 {[%clk 00:34:26]} {[%emt
00:00:56]} Qxf8 {[%clk 00:28:27]} {[%emt 00:00:45]} 18. Rf1 {[%clk 00:33:47]}
{[%emt 00:01:08]} Nf6 {[%clk 00:26:57]} {[%emt 00:02:01]} 19. Nxd4 {[%clk
00:32:17]} {[%emt 00:01:59]} Bc8 {[%clk 00:23:40]} {[%emt 00:03:47]} 20. Bb3
{[%clk 00:24:53]} {[%emt 00:07:54]} Qd8 {[%clk 00:21:32]} {[%emt 00:02:39]} 21.
Ne6 {[%clk 00:24:14]} {[%emt 00:01:08]} Bxe6 {[%clk 00:21:46]} {[%emt
00:00:16]} 22. Bxe6 {[%clk 00:24:41]} {[%emt 00:00:03]} d5 {[%clk 00:19:57]}
{[%emt 00:02:19]} 23. Bxf6 {[%clk 00:20:53]} {[%emt 00:04:17]} Qb6+ {[%clk
00:20:10]} {[%emt 00:00:18]} 24. Kh1 {[%clk 00:20:48]} {[%emt 00:00:34]} Qxe6
{[%clk 00:20:21]} {[%emt 00:00:19]} 25. Bxg7 {[%clk 00:20:56]} {[%emt
00:00:21]} Kxg7 {[%clk 00:20:45]} {[%emt 00:00:06]} 26. exd5 {[%clk 00:19:18]}
{[%emt 00:02:08]} Qxd5 {[%clk 00:21:11]} {[%emt 00:00:05]} 27. Qe3 {[%clk
00:18:52]} {[%emt 00:00:55]} Re8 {[%clk 00:17:00]} {[%emt 00:04:41]} 28. h3
{[%clk 00:17:56]} {[%emt 00:01:26]} Qd6 {[%clk 00:15:11]} {[%emt 00:02:19]} 29.
Re1 {[%clk 00:14:47]} {[%emt 00:03:38]} e5 {[%clk 00:13:25]} {[%emt 00:02:17]}
30. Qe4 {[%clk 00:14:43]} {[%emt 00:00:34]} Rc8 {[%clk 00:12:07]} {[%emt
00:01:48]} 31. c3 {[%clk 00:14:19]} {[%emt 00:00:54]} Rd8 {[%clk 00:12:31]}
{[%emt 00:00:07]} 32. Re3 {[%clk 00:14:33]} {[%emt 00:00:15]} Qd5 {[%clk
00:12:19]} {[%emt 00:00:42]} 33. Qxd5 {[%clk 00:14:12]} {[%emt 00:00:52]} Rxd5
{[%clk 00:12:48]} {[%emt 00:00:01]} 34. Kg1 {[%clk 00:14:25]} {[%emt 00:00:16]}
Kf6 {[%clk 00:13:01]} {[%emt 00:00:18]} 35. Kf2 {[%clk 00:14:33]} {[%emt
00:00:21]} a5 {[%clk 00:12:23]} {[%emt 00:01:09]} 36. Rf3+ {[%clk 00:13:09]}
{[%emt 00:01:54]} Ke6 {[%clk 00:12:11]} {[%emt 00:00:43]} 37. Ke3 {[%clk
00:13:15]} {[%emt 00:00:24]} Rd8 {[%clk 00:12:14]} {[%emt 00:00:27]} 38. Ke4
{[%clk 00:13:07]} {[%emt 00:00:37]} b4 {[%clk 00:12:09]} {[%emt 00:00:37]} 39.
axb4 {[%clk 00:13:20]} {[%emt 00:00:16]} axb4 {[%clk 00:12:38]} {[%emt
00:00:02]} 40. d4 {[%clk 00:12:55]} {[%emt 00:00:55]} exd4 {[%clk 00:09:35]}
{[%emt 00:03:33]} 41. cxd4 {[%clk 00:13:13]} {[%emt 00:00:10]} Rc8 {[%clk
00:09:31]} {[%emt 00:00:36]} 42. d5+ {[%clk 00:10:32]} {[%emt 00:03:10]} Ke7
{[%clk 00:09:30]} {[%emt 00:00:32]} 43. Rb3 {[%clk 00:10:04]} {[%emt 00:00:58]}
Rc4+ {[%clk 00:06:34]} {[%emt 00:03:27]} 44. Ke5 {[%clk 00:10:16]} {[%emt
00:00:17]} g5 {[%clk 00:06:54]} {[%emt 00:00:11]} 45. d6+ {[%clk 00:09:16]}
{[%emt 00:01:30]} Kd7 {[%clk 00:07:20]} {[%emt 00:00:04]} 46. Kd5 {[%clk
00:05:38]} {[%emt 00:04:08]} Rc6 {[%clk 00:05:06]} {[%emt 00:02:44]} 47. Rxb4
{[%clk 00:05:56]} {[%emt 00:00:12]} Rxd6+ {[%clk 00:05:33]} {[%emt 00:00:04]}
48. Ke4 {[%clk 00:06:04]} {[%emt 00:00:21]} Ke6 {[%clk 00:04:31]} {[%emt
00:01:32]} 49. Rb8 {[%clk 00:06:11]} {[%emt 00:00:21]} Rd2 {[%clk 00:04:36]}
{[%emt 00:00:26]} 50. Rb6+ {[%clk 00:06:10]} {[%emt 00:00:31]} Kf7 {[%clk
00:04:55]} {[%emt 00:00:12]} 51. g3 {[%clk 00:04:36]} {[%emt 00:02:04]} Kg7
{[%clk 00:05:17]} {[%emt 00:00:09]} 52. Kf5 {[%clk 00:04:51]} {[%emt 00:00:14]}
Rd5+ {[%clk 00:04:09]} {[%emt 00:01:38]} 53. Kg4 {[%clk 00:04:29]} {[%emt
00:00:51]} Rd3 {[%clk 00:04:24]} {[%emt 00:00:15]} 54. b4 {[%clk 00:02:58]}
{[%emt 00:02:01]} Rd4+ {[%clk 00:02:40]} {[%emt 00:02:14]} 55. Kh5 {[%clk
00:03:20]} {[%emt 00:00:08]} Rd3 {[%clk 00:03:08]} {[%emt 00:00:03]} 56. Rb7+
{[%clk 00:03:15]} {[%emt 00:00:35]} Kf6 {[%clk 00:03:35]} {[%emt 00:00:02]} 57.
Rb6+ {[%clk 00:02:46]} {[%emt 00:00:59]} Kg7 {[%clk 00:04:04]} 58. Rg6+ {[%clk
00:02:49]} {[%emt 00:00:27]} Kf7 {[%clk 00:04:24]} {[%emt 00:00:10]} 59. Rxh6
{[%clk 00:02:45]} {[%emt 00:00:34]} Rxg3 {[%clk 00:04:43]} {[%emt 00:00:12]} 60.
Rh7+ {[%clk 00:02:42]} {[%emt 00:00:33]} Kf6 {[%clk 00:04:36]} {[%emt
00:00:37]} 61. Rb7 {[%clk 00:02:15]} {[%emt 00:00:57]} Rxh3+ {[%clk 00:04:52]}
{[%emt 00:00:14]} 62. Kg4 {[%emt 00:00:38]} 1/2-1/2

[Event "Goteborg Open 2018"]
[Site "Molnlycke kulturhus, Biblioteksgatan 2, Molnlycke, Sweden"]
[Date "2018.08.19"]
[Round "7.5"]
[White "Nilsson, Eskil"]
[Black "Eriksson, Kristian"]
[Result "1/2-1/2"]
[TimeControl "15 minutes + 5 seconds per move from move one (Round 1 - 4) / 90 minutes + 30 seconds per move from move one (Round 5 - 8)"]
[WhiteFideId "1716220"]
[BlackFideId "1705172"]
[WhiteElo "1928"]
[BlackElo "2097"]

1. e4 {[%clk 01:30:56]} {[%emt 00:00:03]} e5 {[%clk 01:30:11]} {[%emt
00:00:50]} 2. Nf3 {[%clk 01:31:18]} {[%emt 00:00:08]} Nc6 {[%clk 01:30:35]}
{[%emt 00:00:06]} 3. Bc4 {[%clk 01:31:43]} {[%emt 00:00:06]} Nf6 {[%clk
01:30:29]} {[%emt 00:00:35]} 4. d3 {[%clk 01:32:06]} {[%emt 00:00:08]} h6
{[%clk 01:29:57]} {[%emt 00:01:01]} 5. c3 {[%clk 01:31:09]} {[%emt 00:01:28]}
d6 {[%clk 01:29:36]} {[%emt 00:00:50]} 6. O-O {[%clk 01:30:46]} {[%emt
00:00:54]} g6 {[%clk 01:28:11]} {[%emt 00:01:55]} 7. d4 {[%clk 01:24:27]}
{[%emt 00:06:49]} Qe7 {[%clk 01:25:30]} {[%emt 00:03:11]} 8. Nbd2 {[%clk
01:22:57]} {[%emt 00:01:58]} Bg7 {[%clk 01:24:52]} {[%emt 00:01:11]} 9. Re1
{[%clk 01:22:01]} {[%emt 00:01:26]} O-O {[%clk 01:23:50]} {[%emt 00:01:33]} 10.
Qc2 {[%clk 01:06:34]} {[%emt 00:15:56]} a6 {[%clk 01:11:49]} {[%emt 00:12:31]}
11. a4 {[%clk 01:01:39]} {[%emt 00:05:26]} Re8 {[%clk 01:05:15]} {[%emt
00:07:04]} 12. a5 {[%clk 00:57:19]} {[%emt 00:04:51]} Nd7 {[%clk 00:55:47]}
{[%emt 00:09:57]} 13. d5 {[%clk 00:51:30]} {[%emt 00:06:19]} Ncb8 {[%clk
00:53:53]} {[%emt 00:02:24]} 14. b4 {[%clk 00:48:56]} {[%emt 00:03:05]} Nf6
{[%clk 00:52:10]} {[%emt 00:02:12]} 15. Bd3 {[%clk 00:40:34]} {[%emt 00:08:52]}
Nh5 {[%clk 00:50:08]} {[%emt 00:02:32]} 16. g3 {[%clk 00:38:49]} {[%emt
00:02:16]} Bh3 {[%clk 00:48:36]} {[%emt 00:02:01]} 17. c4 {[%clk 00:37:41]}
{[%emt 00:01:40]} Nd7 {[%clk 00:46:01]} {[%emt 00:03:03]} 18. Bf1 {[%clk
00:36:55]} {[%emt 00:01:16]} Bxf1 {[%clk 00:45:30]} {[%emt 00:01:02]} 19. Nxf1
{[%clk 00:37:16]} {[%emt 00:00:09]} Rf8 {[%clk 00:44:38]} {[%emt 00:01:22]} 20.
Ne3 {[%clk 00:36:25]} {[%emt 00:01:20]} f5 {[%clk 00:38:48]} {[%emt 00:06:20]}
21. Nh4 {[%clk 00:32:50]} {[%emt 00:04:05]} Nf4 {[%clk 00:26:13]} {[%emt
00:13:05]} 22. exf5 {[%clk 00:32:35]} {[%emt 00:00:45]} g5 {[%clk 00:22:41]}
{[%emt 00:04:02]} 23. Nhg2 {[%clk 00:20:40]} {[%emt 00:12:26]} Nh3+ {[%clk
00:16:50]} {[%emt 00:06:20]} 24. Kf1 {[%clk 00:20:07]} {[%emt 00:01:03]} e4
{[%clk 00:14:25]} {[%emt 00:02:55]} 25. Bb2 {[%clk 00:20:33]} {[%emt 00:00:05]}
Bxb2 {[%clk 00:14:34]} {[%emt 00:00:21]} 26. Qxb2 {[%clk 00:20:58]} {[%emt
00:00:04]} Ne5 {[%clk 00:14:38]} {[%emt 00:00:27]} 27. Re2 {[%clk 00:18:07]}
{[%emt 00:03:21]} Nf3 {[%clk 00:11:21]} {[%emt 00:03:45]} 28. Ne1 {[%clk
00:17:55]} {[%emt 00:00:40]} h5 {[%clk 00:08:15]} {[%emt 00:03:39]} 29. Nxf3
{[%clk 00:17:46]} {[%emt 00:00:39]} exf3 {[%clk 00:08:41]} {[%emt 00:00:04]} 30.
Ree1 {[%clk 00:17:48]} {[%emt 00:00:27]} Qe4 {[%clk 00:06:15]} {[%emt
00:02:56]} 31. Qc3 {[%clk 00:14:59]} {[%emt 00:03:19]} Rae8 {[%clk 00:05:37]}
{[%emt 00:01:09]} 32. c5 {[%clk 00:13:22]} {[%emt 00:02:07]} Nf4 {[%clk
00:04:12]} {[%emt 00:01:54]} 33. Ng4 {[%clk 00:09:53]} {[%emt 00:04:00]} Qd3+
{[%clk 00:03:38]} {[%emt 00:01:03]} 34. Qxd3 {[%clk 00:10:10]} {[%emt
00:00:14]} Rxe1+ {[%clk 00:04:03]} {[%emt 00:00:05]} 35. Kxe1 {[%clk 00:09:30]}
{[%emt 00:01:10]} Nxd3+ {[%clk 00:04:12]} {[%emt 00:00:21]} 36. Kd2 {[%clk
00:09:55]} {[%emt 00:00:05]} Nxb4 {[%clk 00:03:45]} {[%emt 00:00:57]} 37. Ne3
{[%clk 00:10:09]} {[%emt 00:00:15]} dxc5 {[%clk 00:03:29]} {[%emt 00:00:47]} 38.
Kc3 {[%clk 00:09:33]} {[%emt 00:01:05]} Rd8 {[%clk 00:02:29]} {[%emt 00:01:28]}
1/2-1/2

[Event "Goteborg Open 2018"]
[Site "Molnlycke kulturhus, Biblioteksgatan 2, Molnlycke, Sweden"]
[Date "2018.08.19"]
[Round "7.6"]
[White "Bengtsson, Tage"]
[Black "Rasti, Arvin"]
[Result "1/2-1/2"]
[TimeControl "15 minutes + 5 seconds per move from move one (Round 1 - 4) / 90 minutes + 30 seconds per move from move one (Round 5 - 8)"]
[WhiteFideId "1713850"]
[BlackFideId "1741160"]
[WhiteElo "2001"]
[BlackElo "2091"]

1. c4 {[%clk 01:30:59]} {[%emt 00:15:00]} e6 {[%clk 01:30:24]} {[%emt
00:00:36]} 2. Nc3 {[%clk 01:31:11]} {[%emt 00:00:18]} d5 {[%clk 01:30:29]}
{[%emt 00:00:25]} 3. d4 {[%clk 01:31:31]} {[%emt 00:00:10]} c6 {[%clk
01:30:23]} {[%emt 00:00:36]} 4. e4 {[%clk 01:30:55]} {[%emt 00:01:06]} dxe4
{[%clk 01:30:00]} {[%emt 00:00:53]} 5. Nxe4 {[%clk 01:31:23]} {[%emt 00:00:02]}
Bb4+ {[%clk 01:29:13]} {[%emt 00:01:17]} 6. Nc3 {[%clk 01:31:47]} {[%emt
00:00:06]} Nf6 {[%clk 01:29:16]} {[%emt 00:00:27]} 7. Nf3 {[%clk 01:32:11]}
{[%emt 00:00:06]} O-O {[%clk 01:27:53]} {[%emt 00:01:53]} 8. Bd3 {[%clk
01:31:51]} {[%emt 00:00:49]} Nbd7 {[%clk 01:23:53]} {[%emt 00:04:30]} 9. O-O
{[%clk 01:32:11]} {[%emt 00:00:10]} Qc7 {[%clk 01:22:30]} {[%emt 00:01:53]} 10.
Bg5 {[%clk 01:26:30]} {[%emt 00:06:11]} Bxc3 {[%clk 01:21:08]} {[%emt
00:01:52]} 11. bxc3 {[%clk 01:26:58]} {[%emt 00:00:02]} b6 {[%clk 01:20:26]}
{[%emt 00:01:13]} 12. Qe2 {[%clk 01:26:48]} {[%emt 00:00:40]} Bb7 {[%clk
01:17:54]} {[%emt 00:03:02]} 1/2-1/2